[Event "7th Sharjah Masters 2024"]
[Site "Sharjah"]
[Date "2024.05.18"]
[Round "5.12"]
[White "Mendonca, Leon Luke"]
[Black "Theodorou, Nikolas"]
[Result "1/2-1/2"]
[ECO "C54"]
[WhiteElo "2640"]
[BlackElo "2617"]
[Annotator "TA"]
[PlyCount "41"]
[EventDate "2024.05.13"]
[EventType "swiss"]
[EventCountry "UAE"]
[SourceTitle "playchess.com"]
[Source "ChessBase"]
[SourceQuality "1"]
[TimeControl "5400+30"]

{[%evp 10,41,22,10,27,13,28,10,20,6,10,13,5,5,0,0,0,0,0,0,0,0,0,0,0,0,0,0,0,0,0,0,0,0]} 1. e4 {[%emt 1:31:00]} e5 {[%emt 1:31:00]} 2. Nf3 {[%emt 0:00:30]} Nc6 {[%emt 0:00:30]} 3. Bc4 {[%emt 0:00:30]} Nf6 {[%emt 0:00:30]} 4. d3 {[%emt 0:00:30]} Bc5 {[%emt 0:00:30]} 5. c3 {[%emt 0:00:30]} d6 {[%emt 0:00:30]} 6. O-O {[%emt 0:00:30]} a5 {[%emt 0:00:30]} 7. Re1 {[%emt 0:00:30]} Ba7 {[%emt 0:00:30]} 8. Nbd2 {[%emt 0:00:30][%cal Bb1d2,Bd2f1,Bf1g3][%mdl 32]} O-O {[%emt 0:00:30] The position is equal.} 9. Nf1 {[%emt 0:00:30]} Be6 {[%emt 0:00:30]} 10. Bb5 {[%emt 0:00:30]} Ne7 {[%emt 0:00:30][%cal Bc6e7,Be7g6,Bg6e5][%mdl 32]} 11. d4 {[%emt 0:00:30]} Ng6 {[%emt 0:00:30]} 12. Ng3 {[%emt 0:00:30]} c6 {[%emt 0:00:30]} 13. Bd3 {[%emt 0:00:30]} Bg4 {[%emt 0:00:30]} 14. Be3 {[%emt 0:00:30]} d5 {[%emt 0:00:30]} 15. dxe5 {[%emt 0:00:30]} Nxe5 {[%emt 0:00:30] Threatens to win with ...dxe4.} 16. Bxa7 {[%emt 0:00:30] [#] Bd4 is the strong threat.} Bxf3 {[%emt 0:00:30]} 17. gxf3 {[%emt 0:00:30]} Rxa7 {[%emt 0:00:30]} 18. exd5 {[%emt 0:00:30]} Nxd3 {[%emt 0:00:30]} 19. Qxd3 {[%emt 0:00:30]} Qxd5 {[%emt 0:00:30]} 20. Qxd5 {[%emt 0:00:30]} Nxd5 {[%emt 0:00:30]} 21. c4 {[%emt 0:00:30] A rather calm draw.   Weighted Error Value: White=0.04 (flawless) /Black=0.02 (flawless) .  OK:         	White=5     	Black=11} 1/2-1/2

[Event "7th Sharjah Masters 2024"]
[Site "Sharjah"]
[Date "2024.05.18"]
[Round "5.13"]
[White "Iniyan, Pa"]
[Black "Radjabov, Teimour"]
[Result "1/2-1/2"]
[ECO "D19"]
[WhiteElo "2497"]
[BlackElo "2723"]
[Annotator "TA"]
[PlyCount "63"]
[EventDate "2024.05.13"]
[EventType "swiss"]
[EventCountry "UAE"]
[SourceTitle "playchess.com"]
[Source "ChessBase"]
[SourceQuality "1"]
[TimeControl "5400+30"]

{[%evp 23,63,37,29,45,41,28,33,9,18,7,18,22,16,24,14,0,0,0,0,0,0,0,0,0,0,0,0,0,0,0,0,0,0,0,0,0,0,0,0,0,0,0]} 1. d4 {[%emt 0:00:20]} Nf6 {[%emt 0:01:50]} 2. c4 {[%emt 0:00:16]} c6 {[%emt 0:00:02]} 3. Nc3 {[%emt 0:00:17]} d5 {[%emt 0:00:02]} 4. Nf3 {[%emt 0:00:10]} dxc4 {[%emt 0:00:03]} 5. a4 {[%emt 0:00:11]} Bf5 {[%emt 0:00:02]} 6. e3 {[%emt 0:00:09]} e6 {[%emt 0:00:07]} 7. Bxc4 {[%emt 0:00:05]} Bb4 {[%emt 0:00:15]} 8. O-O {[%emt 0:00:09]} O-O {[%emt 0:00:20]} 9. Qe2 {[%emt 0:00:05]} Bg6 {[%emt 0:00:06]} 10. Ne5 {[%emt 0:00:15]} Nbd7 {[%emt 0:00:22]} 11. Nxg6 {[%emt 0:00:10]} hxg6 {[%emt 0:00:05]} 12. Rd1 {[%emt 0:00:18]} Qc7 {[%emt 0:00:33]} 13. e4 {[%emt 0:01:48]} e5 {[%emt 0:00:05]} 14. d5 {[%emt 0:03:21]} Rad8 {[%emt 0:00:02]} 15. a5 {[%emt 0:10:18] White is slightly better.} b5 {[%emt 0:10:33]} 16. dxc6 {[%emt 0:00:54]} bxc4 {[%emt 0:09:13]} 17. cxd7 {[%emt 0:00:06]} Rxd7 {[%emt 0:00:28]} 18. Rxd7 {[%emt 0:00:10]} Qxd7 {[%emt 0:00:04]} 19. Bd2 {[%emt 0:02:02] The position is equal.} Rb8 {[%emt 0:09:32]} 20. Be3 {[%emt 0:42:12]} Qc7 {[%emt 0:22:19]} 21. a6 {[%emt 0:12:44]} Bxc3 {[%emt 0:17:09]} 22. bxc3 {[%emt 0:00:13]} Nxe4 {[%emt 0:06:49]} 23. Bxa7 $1 {[%emt 0:00:07]} Nxc3 {[%emt 0:00:56]} 24. Qe3 {[%emt 0:00:06]} Rc8 {[%emt 0:06:03]} 25. Bb6 {[%emt 0:04:14]} (25. Qxc3 Qxa7 26. Qxe5 c3) 25... Qc6 {[%emt 0:00:33] [#] Strongly threatening ...Nd5.} 26. Qxe5 {[%emt 0:04:37]} Qxb6 {[%emt 0:04:08]} 27. Qxc3 $11 {[%emt 0:00:08] KQR-KQR} Qb3 {[%emt 0:00:25]} 28. Qd4 {[%emt 0:06:11]} c3 {[%emt 0:00:56] Threatens to win with ...c2.} 29. a7 {[%emt 0:00:55]} c2 {[%emt 0:02:44]} 30. Rc1 $1 {[%emt 0:00:05]} Qa3 {[%emt 0:02:43]} 31. Qe3 {[%emt 0:00:46]} (31. Rxc2 $2 {leads to mate.} Qc1+ 32. Rxc1 Rxc1+) 31... Qxe3 {[%emt 0:02:25]} 32. fxe3 {[%emt 0:00:05] Weighted Error Value: White=0.03 (flawless) /Black=0.00 (flawless) .  OK:         	White=8     	Black=14     Best:        	---       	Black=2      Strong:       	White=2     	---} 1/2-1/2

[Event "7th Sharjah Masters 2024"]
[Site "Sharjah"]
[Date "2024.05.18"]
[Round "5.14"]
[White "Vakhidov, Jakhongir"]
[Black "Maghsoodloo, Parham"]
[Result "0-1"]
[ECO "D35"]
[WhiteElo "2599"]
[BlackElo "2733"]
[Annotator "TA"]
[PlyCount "116"]
[EventDate "2024.05.13"]
[EventType "swiss"]
[EventCountry "UAE"]
[SourceTitle "playchess.com"]
[Source "ChessBase"]
[SourceQuality "1"]
[TimeControl "5400+30"]

{[%evp 50,116,-69,-54,-70,-51,-54,-84,-80,-180,-162,-247,-239,-236,-212,-267,-235,-246,-243,-254,-220,-200,-187,-214,-111,-164,-142,-257,-247,-254,-249,-256,-268,-258,-262,-287,-280,-395,-372,-332,-347,-398,-388,-343,-354,-549,-560,-630,-543,-547,0,-656,-629,-680,-682,-715,-720,-812,-806,-885,-862,-970,-940,-1218,-1158,-1422,-1422,-1547,-1538]} 1. c4 {[%emt 0:01:43]} e6 {[%emt 0:00:10]} 2. Nc3 {[%emt 0:00:07]} d5 {[%emt 0:00:04]} 3. d4 {[%emt 0:00:05]} Nf6 {[%emt 0:00:06]} 4. cxd5 {[%emt 0:00:05]} Nxd5 {[%emt 0:00:09]} 5. e4 {[%emt 0:00:04]} Nxc3 {[%emt 0:00:06]} 6. bxc3 {[%emt 0:00:03]} c5 {[%emt 0:00:08]} 7. Rb1 {[%emt 0:00:03]} Be7 {[%emt 0:00:06] D35: Queen's Gambit Declined: Exchange Variation.} 8. Nf3 {[%emt 0:00:04]} O-O {[%emt 0:00:08]} 9. Bc4 {[%emt 0:00:03] 9.h4 might become the main line.} Qc7 {[%emt 0:00:10]} 10. Bb3 $146 {[%emt 0:00:12]} ({Predecessor:} 10. Qe2 a6 11. O-O b5 12. Bd3 Nd7 13. Rd1 h6 14. a4 bxa4 15. g3 cxd4 16. cxd4 {1-0 Mamedyarov,S (2764)-Dominguez Perez,L (2763) Saint Louis Rapid 2019 (1)}) 10... b6 {[%emt 0:02:14]} 11. O-O {[%emt 0:00:06]} Nc6 {[%emt 0:00:03]} 12. d5 {[%emt 0:05:47]} Na5 {[%emt 0:14:36]} 13. Bc2 {[%emt 0:00:14]} Ba6 {[%emt 0:01:08]} 14. e5 {[%emt 0:00:09]} exd5 {[%emt 0:00:08]} 15. Re1 {[%emt 0:00:03]} Rae8 {[%emt 0:03:40]} 16. Bf4 {[%emt 0:26:08]} Nc4 {[%emt 0:00:44]} 17. Qd3 {[%emt 0:25:45]} g6 {[%emt 0:00:15]} 18. Bh6 {[%emt 0:00:06]} Bc8 {[%emt 0:00:03]} 19. Bxf8 {[%emt 0:02:37]} Bxf8 {[%emt 0:00:06]} 20. Qxd5 {[%emt 0:07:50]} Na3 {[%emt 0:02:45]} 21. Rbc1 {[%emt 0:02:28]} Bh6 {[%emt 0:07:14]} 22. Ba4 {[%emt 0:05:08]} Be6 {[%emt 0:16:32]} 23. Qe4 {[%emt 0:04:37]} b5 {[%emt 0:00:18]} 24. Rcd1 {[%emt 0:00:02]} Qe7 {[%emt 0:04:24]} 25. Bb3 {[%emt 0:00:08]} c4 {[%emt 0:03:16]} 26. Nd4 $1 {[%emt 0:00:03]} (26. Bc2 $2 Bf5 27. Qd5 Bxc2 $19 (27... Nxc2 $2 28. Re2 $19)) 26... cxb3 {[%emt 0:00:05]} 27. axb3 {[%emt 0:00:03]} a5 {[%emt 0:09:21]} 28. Qc6 {[%emt 0:09:26]} Bf8 {[%emt 0:03:42]} 29. Ra1 {[%emt 0:05:02]} (29. Nxe6 $17 Qxe6 30. Qxe6 Rxe6 (30... fxe6 31. Re4 $17) 31. Rd8) 29... Qd8 {[%emt 0:07:00]} 30. Qe4 {[%emt 0:06:14]} (30. Nxe6 $142 Rxe6 31. Qe4) 30... Bd5 $19 {[%emt 0:02:02]} 31. Qf4 {[%emt 0:00:01]} Qb6 {[%emt 0:04:17]} 32. Rad1 {[%emt 0:01:18]} Qb7 {[%emt 0:11:46]} 33. Qg3 {[%emt 0:00:12]} a4 {[%emt 0:01:11]} 34. b4 {[%emt 0:00:55]} Bb3 {[%emt 0:00:55]} 35. Rd2 {[%emt 0:00:29]} Qd5 {[%emt 0:01:17]} 36. f4 {[%emt 0:00:36]} Bg7 {[%emt 0:02:17]} (36... Rc8 $19 {[%cal Oa3c2] And now ...Nc2! would win.} 37. f5 Nc2 (37... Nc4 38. Rd3 $11) 38. Rxc2 Bxc2 39. Nxc2 Qd2) 37. Qf2 {[%emt 0:00:22]} (37. h4 $17) 37... Qb7 {[%emt 0:01:49]} 38. Rde2 {[%emt 0:00:22]} (38. Ra1 $17 {was necessary.} Nc4 39. Re2) 38... Bc4 $19 {[%emt 0:00:26]} 39. Rd2 {[%emt 0:00:26] [#]} Bd5 $1 {[%emt 0:00:09]} 40. Rdd1 {[%emt 0:00:29]} Nc4 {[%emt 0:00:13]} 41. h4 {[%emt 0:00:02]} h5 {[%emt 0:00:36]} 42. Kh2 {[%emt 0:00:28]} a3 {[%emt 0:00:30]} 43. g3 {[%emt 0:00:04]} (43. Re2 $142) 43... Nb2 $19 {[%emt 0:01:04]} 44. Rd2 {[%emt 0:00:01]} Na4 {[%emt 0:00:06]} 45. Nc2 {[%emt 0:01:53]} a2 {[%emt 0:01:54]} (45... Nxc3 46. Qd4 Qc6 47. Nxa3 $11) 46. Ne3 {[%emt 0:00:02]} Bb3 {[%emt 0:00:05]} ({Not} 46... Nxc3 47. Nxd5 Nxd5 48. Rxa2 $19) 47. Rd3 {[%emt 0:01:23]} (47. Rxa2 $142 Bxa2 (47... Nxc3 48. Ra3 $17) 48. Qxa2) 47... Qe4 $19 {[%emt 0:00:13]} 48. Qf1 {[%emt 0:00:31]} Qc6 {[%emt 0:02:26]} 49. Rc1 {[%emt 0:00:23]} Qe4 {[%emt 0:01:47]} 50. Re1 $1 {[%emt 0:00:21]} Ra8 {[%emt 0:00:02]} 51. Rd4 {[%emt 0:00:38]} Qc6 {[%emt 0:00:04]} 52. c4 {[%emt 0:00:10]} Nc3 {[%emt 0:01:44]} 53. Ra1 {[%emt 0:00:40]} bxc4 {[%emt 0:00:09]} 54. Qe1 {[%emt 0:00:38]} Nb5 {[%emt 0:00:12]} 55. Rd5 {[%emt 0:00:03]} Bf8 {[%emt 0:00:31]} 56. e6 {[%emt 0:00:09]} c3 {[%emt 0:00:21]} 57. exf7+ {[%emt 0:00:08]} Kxf7 {[%emt 0:00:01]} 58. Re5 {[%emt 0:01:46]} Nd4 {[%emt 0:00:07]} 0-1

[Event "7th Sharjah Masters 2024"]
[Site "Sharjah"]
[Date "2024.05.18"]
[Round "5.15"]
[White "Vokhidov, Shamsiddin"]
[Black "Artemiev, Vladislav"]
[Result "1/2-1/2"]
[ECO "C72"]
[WhiteElo "2592"]
[BlackElo "2705"]
[Annotator "TA"]
[PlyCount "66"]
[EventDate "2024.05.13"]
[EventType "swiss"]
[EventCountry "UAE"]
[SourceTitle "playchess.com"]
[Source "ChessBase"]
[SourceQuality "1"]
[TimeControl "5400+30"]

{[%evp 18,66,27,24,39,26,11,-4,0,0,18,10,16,8,23,5,21,0,0,0,0,0,0,0,0,0,0,0,0,0,0,0,0,0,0,0,0,0,0,0,0,0,0,0,0,0,0,0,0,0,0]} 1. e4 {[%emt 0:00:06]} e5 {[%emt 0:00:35]} 2. Nf3 {[%emt 0:00:31]} Nc6 {[%emt 0:00:19]} 3. Bb5 {[%emt 0:00:45]} a6 {[%emt 0:02:05]} 4. Ba4 {[%emt 0:00:08]} d6 {[%emt 0:00:31]} 5. O-O {[%emt 0:01:27]} Bd7 {[%emt 0:01:28]} 6. d4 {[%emt 0:00:11]} Nxd4 {[%emt 0:02:18]} 7. Bxd7+ {[%emt 0:00:47]} Qxd7 {[%emt 0:00:12]} 8. Nxd4 {[%emt 0:00:05]} exd4 {[%emt 0:00:14]} 9. Qxd4 {[%emt 0:00:05]} Nf6 {[%emt 0:00:31]} 10. Nc3 {[%emt 0:03:31]} Be7 {[%emt 0:01:04]} 11. Rd1 {[%emt 0:02:39]} Rd8 {[%emt 0:11:31]} 12. b3 {[%emt 0:08:36]} O-O {[%emt 0:13:31]} 13. Bb2 {[%emt 0:02:11]} Rfe8 {[%emt 0:20:32]} 14. Nd5 {[%emt 0:16:25]} c6 {[%emt 0:01:26]} 15. Nxe7+ {[%emt 0:00:04]} Qxe7 {[%emt 0:00:11]} 16. f3 {[%emt 0:00:25]} d5 {[%emt 0:01:11] The position is equal.} 17. exd5 {[%emt 0:11:21]} Rxd5 {[%emt 0:00:38]} 18. Qc3 {[%emt 0:01:40]} Qf8 {[%emt 0:09:51]} 19. Rxd5 {[%emt 0:03:31]} Nxd5 {[%emt 0:00:08]} 20. Qd2 {[%emt 0:00:14]} b5 {[%emt 0:16:42]} 21. Rc1 {[%emt 0:07:03]} Rd8 {[%emt 0:04:21]} 22. Rd1 {[%emt 0:01:54]} f6 {[%emt 0:05:46]} 23. c4 {[%emt 0:07:39]} bxc4 {[%emt 0:00:06]} 24. bxc4 {[%emt 0:00:01]} Qc5+ {[%emt 0:00:07]} 25. Qd4 {[%emt 0:00:10]} Nf4 {[%emt 0:00:38]} 26. Qxc5 {[%emt 0:00:05]} Rxd1+ {[%emt 0:00:05]} 27. Kf2 {[%emt 0:00:02]} Nd3+ {[%emt 0:00:06]} 28. Ke2 {[%emt 0:00:06]} Nxc5 {[%emt 0:00:05]} 29. Kxd1 {[%emt 0:00:03]} Kf7 {[%emt 0:00:41]} 30. Kc2 {[%emt 0:02:30]} Ke6 {[%emt 0:00:54]} 31. Ba3 {[%emt 0:00:14]} Nd7 {[%emt 0:01:35]} 32. Kc3 {[%emt 0:01:07]} c5 {[%emt 0:00:31]} 33. Bc1 {[%emt 0:00:13]} Ke5 {[%emt 0:07:07] A balanced but interesting game.   Weighted Error Value: White=0.04 (flawless) /Black=0.01 (flawless) .  OK:         	White=11    	Black=15     Best:        	White=3     	Black=2} 1/2-1/2

[Event "7th Sharjah Masters 2024"]
[Site "Sharjah"]
[Date "2024.05.18"]
[Round "5.16"]
[White "Safarli, Eltaj"]
[Black "Esipenko, Andrey"]
[Result "1/2-1/2"]
[ECO "B23"]
[WhiteElo "2597"]
[BlackElo "2704"]
[Annotator "TA"]
[PlyCount "54"]
[EventDate "2024.05.13"]
[EventType "swiss"]
[EventCountry "UAE"]
[SourceTitle "playchess.com"]
[Source "ChessBase"]
[SourceQuality "1"]
[TimeControl "5400+30"]

{[%evp 9,54,-11,-7,0,0,-2,0,0,0,-4,-8,0,3,11,36,0,0,-10,0,-2,-3,0,0,-8,-12,-11,0,0,0,0,0,6,0,0,0,0,0,0,0,0,0,0,0,0,0,0,0]} 1. e4 {[%emt 1:31:00]} c5 {[%emt 1:31:00]} 2. Nc3 {[%emt 0:00:30]} Nc6 {[%emt 0:00:30]} 3. Bb5 {[%emt 0:00:30]} Nd4 {[%emt 0:00:30]} 4. a4 {[%emt 0:00:30]} a6 {[%emt 0:00:30]} 5. Bc4 {[%emt 0:00:30]} e6 {[%emt 0:00:30]} 6. Nf3 {[%emt 0:00:30]} Nf6 {[%emt 0:00:30]} 7. d3 {[%emt 0:00:30]} d5 {[%emt 0:00:30]} 8. Ba2 {[%emt 0:00:30]} Nc6 {[%emt 0:00:30]} 9. O-O {[%emt 0:00:30]} Be7 {[%emt 0:00:30]} 10. Re1 {[%emt 0:00:30]} Nb4 {[%emt 0:00:30]} 11. Bb3 {[%emt 0:00:30]} b6 {[%emt 0:00:30]} 12. Bg5 {[%emt 0:00:30]} (12. exd5 $14 exd5 13. Ne5) 12... Bb7 $11 {[%emt 0:00:30] The position is equal.} 13. exd5 {[%emt 0:00:30]} Nbxd5 {[%emt 0:00:30]} 14. Nxd5 {[%emt 0:00:30]} Nxd5 {[%emt 0:00:30]} 15. Bxe7 {[%emt 0:00:30]} Qxe7 {[%emt 0:00:30]} 16. Ne5 {[%emt 0:00:30]} O-O {[%emt 0:00:30]} 17. Qg4 Rad8 {[%emt 0:00:30]} 18. Qg3 {[%emt 0:01:00]} Kh8 {[%emt 0:00:30]} 19. Bxd5 {[%emt 0:00:30]} Bxd5 {[%emt 0:00:30]} 20. b3 {[%emt 0:00:30]} f6 {[%emt 0:00:30]} 21. Nc4 {[%emt 0:00:30]} Qb7 {[%emt 0:00:30]} 22. Re2 {[%emt 0:00:30]} b5 {[%emt 0:00:30]} 23. axb5 {[%emt 0:00:30]} axb5 {[%emt 0:00:30]} 24. Ne3 {[%emt 0:00:30]} Bc6 {[%emt 0:00:30]} 25. Rae1 {[%emt 0:00:30]} Rd4 {[%emt 0:00:30]} 26. f4 {[%emt 0:00:30][%cal Oe3f5] [#] Hoping for Nf5!} Qb8 {[%emt 0:00:30]} 27. Nf1 {[%emt 0:00:30]} Bd7 $1 {[%emt 0:00:30] A rather calm draw.   Weighted Error Value: White=0.02 (flawless) /Black=0.03 (flawless) .  Mistake:       	White=1     	---        OK:         	White=12    	Black=9      Strong:       	---       	Black=1} 1/2-1/2

[Event "7th Sharjah Masters 2024"]
[Site "Sharjah"]
[Date "2024.05.18"]
[Round "5.17"]
[White "Nesterov, Arseniy"]
[Black "Deac, Bogdan-Daniel"]
[Result "1/2-1/2"]
[ECO "D37"]
[WhiteElo "2590"]
[BlackElo "2693"]
[Annotator "TA"]
[PlyCount "57"]
[EventDate "2024.05.13"]
[EventType "swiss"]
[EventCountry "UAE"]
[SourceTitle "playchess.com"]
[Source "ChessBase"]
[SourceQuality "1"]
[TimeControl "5400+30"]

{[%evp 13,57,-1,0,0,12,0,17,12,24,26,26,20,30,22,25,19,43,29,30,11,6,0,0,0,0,0,22,9,9,0,31,31,43,25,33,33,60,66,78,18,20,0,0,0,0,0]} 1. d4 {[%emt 0:00:03]} Nf6 {[%emt 0:00:02]} 2. c4 {[%emt 0:00:07]} e6 {[%emt 0:00:03]} 3. Nf3 {[%emt 0:00:05]} d5 {[%emt 0:00:04]} 4. Nc3 {[%emt 0:00:05]} Be7 {[%emt 0:00:33]} 5. Bf4 {[%emt 0:00:29]} O-O {[%emt 0:00:26]} 6. e3 {[%emt 0:00:03]} Nbd7 {[%emt 0:00:07]} 7. cxd5 {[%emt 0:19:05]} Nxd5 {[%emt 0:01:19]} 8. Nxd5 {[%emt 0:00:33]} exd5 {[%emt 0:00:02]} 9. Be2 {[%emt 0:00:14]} Bb4+ {[%emt 0:16:13]} 10. Nd2 {[%emt 0:01:35]} Nb6 {[%emt 0:01:35]} 11. a3 {[%emt 0:09:56]} Bd6 {[%emt 0:01:02]} 12. Bxd6 {[%emt 0:00:04]} Qxd6 {[%emt 0:00:05]} 13. Bd3 {[%emt 0:02:38]} a5 {[%emt 0:03:15]} 14. O-O {[%emt 0:02:31]} c6 {[%emt 0:01:28]} 15. b4 {[%emt 0:07:40]} axb4 {[%emt 0:16:53]} 16. Qb1 {[%emt 0:00:51]} g6 {[%emt 0:02:00][%cal Oc8e6]} 17. Qxb4 {[%emt 0:00:50]} Qxb4 {[%emt 0:00:06]} 18. axb4 {[%emt 0:00:04]} Be6 {[%emt 0:00:01]} 19. f3 {[%emt 0:19:35]} Rfb8 {[%emt 0:01:44]} 20. Kf2 {[%emt 0:01:01]} Kf8 {[%emt 0:00:29]} 21. Nb3 {[%emt 0:01:50]} Nc8 {[%emt 0:06:54]} 22. Nc5 {[%emt 0:05:20]} b6 {[%emt 0:00:09]} 23. Nxe6+ {[%emt 0:07:41]} fxe6 {[%emt 0:01:45]} 24. Rfc1 {[%emt 0:00:27] aiming for Rxa8.} Rxa1 {[%emt 0:01:45]} 25. Rxa1 {[%emt 0:00:04]} Ke7 {[%emt 0:00:23]} 26. e4 {[%emt 0:08:24] White is more active.} (26. g4 $16) 26... dxe4 $11 {[%emt 0:08:33] The position is equal.} 27. Bxe4 {[%emt 0:01:30]} Kd6 {[%emt 0:00:19]} 28. h4 {[%emt 0:00:41]} Ne7 {[%emt 0:07:47]} 29. Ra7 {[%emt 0:11:34] Weighted Error Value: White=0.11 (very precise) /Black=0.09 (flawless) .  Mistake:       	White=1     	---        Inaccurate:     	---       	Black=2      OK:         	White=5     	Black=8      Best:        	---       	Black=1} 1/2-1/2

[Event "7th Sharjah Masters 2024"]
[Site "Sharjah"]
[Date "2024.05.18"]
[Round "5.18"]
[White "Martirosyan, Haik M."]
[Black "Moroni, Luca Jr"]
[Result "1-0"]
[ECO "C54"]
[WhiteElo "2679"]
[BlackElo "2581"]
[Annotator "TA"]
[PlyCount "105"]
[EventDate "2024.05.13"]
[EventType "swiss"]
[EventCountry "UAE"]
[SourceTitle "playchess.com"]
[Source "ChessBase"]
[SourceQuality "1"]
[TimeControl "5400+30"]

{[%evp 49,105,24,118,116,118,120,133,143,133,131,152,156,164,173,161,156,187,194,230,225,228,244,220,202,216,187,198,198,194,191,227,207,272,234,246,253,252,257,243,251,240,247,297,294,515,544,546,544,835,799,839,852,884,887,857,852,828,816]} 1. e4 {[%emt 1:31:00]} e5 {[%emt 1:31:00]} 2. Nf3 {[%emt 0:00:30]} Nc6 {[%emt 0:00:30]} 3. Bc4 {[%emt 0:00:30]} Bc5 {[%emt 0:00:30]} 4. c3 {[%emt 0:00:30]} Nf6 {[%emt 0:00:30]} 5. d3 {[%emt 0:00:30]} d6 {[%emt 0:00:30]} 6. O-O {[%emt 0:00:30]} a6 {[%emt 0:00:30]} 7. Re1 {[%emt 0:00:30] C54: Giuoco Piano: 4 c3 Nf6, main lines with 5 d4 and 5 d3.} Ba7 {[%emt 0:00:30]} 8. Nbd2 {[%emt 0:00:30] 8.a4 is the modern continuation.} O-O {[%emt 0:00:30]} 9. Nf1 {[%emt 0:00:30]} h6 {[%emt 0:00:30]} 10. Ng3 {[%emt 0:00:30]} Be6 {[%emt 0:00:30]} 11. Bxe6 {[%emt 0:00:30]} fxe6 {[%emt 0:00:30]} 12. h3 $146 {[%emt 0:00:30]} ({Predecessor:} 12. Be3 Bxe3 13. Rxe3 Ne7 14. d4 Ng6 15. Qb3 Qd7 16. Rd1 Kh8 17. h3 exd4 18. cxd4 {0-1 Savchenko,B (2551)-Sadhwani,R (2545) Levitov Christmas Online Final blitz 2020 (1.1)}) 12... Qe8 {[%emt 0:00:30]} 13. Be3 {[%emt 0:00:30]} Bxe3 {[%emt 0:00:30]} 14. Rxe3 {[%emt 0:00:30]} Rd8 {[%emt 0:00:30]} 15. Qb3 {[%emt 0:00:30]} b6 {[%emt 0:00:30]} 16. d4 {[%emt 0:00:30]} Kh8 {[%emt 0:00:30]} 17. Rd1 {[%emt 0:00:30]} Na5 {[%emt 0:00:30]} 18. Qc2 {[%emt 0:00:30]} Nc6 {[%emt 0:00:30]} 19. a3 {[%emt 0:00:30]} b5 {[%emt 0:00:30]} 20. Red3 {[%emt 0:00:30]} Nd7 {[%emt 0:00:30]} 21. Qe2 {[%emt 0:00:30]} Rb8 {[%emt 0:00:30]} 22. Nf1 {[%emt 0:00:30]} Qg6 {[%emt 0:00:30]} 23. Re3 {[%emt 0:00:30]} Nf6 {[%emt 0:00:30]} 24. g3 {[%emt 0:00:30]} Qf7 {[%emt 0:00:30]} 25. N1h2 {[%emt 0:00:30]} (25. dxe5 $16 dxe5) 25... Kg8 {[%emt 0:00:30]} (25... Nd7 $11 {keeps the balance.}) 26. dxe5 $16 {[%emt 0:00:30]} dxe5 {[%emt 0:00:30]} 27. b4 {[%emt 0:00:30]} Rfd8 {[%emt 0:00:30]} 28. Rxd8+ {[%emt 0:00:30]} Rxd8 29. a4 {[%emt 0:00:30]} Qd7 {[%emt 0:01:00] [#]} 30. Kg2 $1 {[%emt 0:00:30]} (30. axb5 Qd1+ 31. Qxd1 Rxd1+ 32. Kg2 axb5 $17) 30... bxa4 {[%emt 0:00:30]} 31. Qxa6 {[%emt 0:00:30]} Ne7 {[%emt 0:00:30]} 32. b5 {[%emt 0:00:30]} (32. Nxe5 Qd6 33. Qb5 (33. Qxa4 Qxe5 34. Nf3 Qd6 $17) 33... Ra8 $14) 32... Qd6 {[%emt 0:00:30]} 33. Qxa4 {[%emt 0:00:30]} Qc5 {[%emt 0:00:30]} 34. Ng4 {[%emt 0:00:30]} Nxg4 {[%emt 0:00:30]} 35. hxg4 Nc8 {[%emt 0:00:30]} 36. Qa2 {[%emt 0:01:00]} Re8 {[%emt 0:00:30]} 37. g5 {[%emt 0:00:30]} Nd6 {[%emt 0:00:30]} 38. gxh6 {[%emt 0:00:30]} gxh6 {[%emt 0:00:30]} 39. c4 {[%emt 0:00:30]} Rf8 {[%emt 0:00:30]} 40. Nd2 {[%emt 0:00:30]} c6 {[%emt 0:00:30]} 41. b6 {[%emt 0:00:30]} Qxb6 {[%emt 0:00:30]} 42. c5 $1 {[%emt 0:00:30]} Qxc5 43. Qxe6+ {[%emt 0:00:30]} Kg7 {[%emt 0:01:00]} 44. Nf3 {[%emt 0:00:30]} Rf6 {[%emt 0:00:30]} 45. Qg4+ {[%emt 0:00:30]} Kf8 {[%emt 0:00:30]} 46. Rb3 {[%emt 0:00:30]} Qc4 $2 {[%emt 0:00:30]} (46... Nb5 {was called for.} 47. Rb2 Qe7) 47. Rb8+ $18 {[%emt 0:00:30]} (47. Nxe5 Qxb3 48. Nd7+ Ke7 49. Nxf6 Kxf6 $15) 47... Ke7 {[#]} 48. Ra8 $1 {[%emt 0:00:30]} (48. Nxe5 Qxe4+ 49. Qxe4 Nxe4 $14) 48... Nf5 {[%emt 0:01:00]} 49. Ra7+ {[%emt 0:00:30]} (49. Nxe5 Ne3+ 50. Kh3 Qf1+ (50... Nxg4 51. Nxc4 Nxf2+ 52. Kg2 $15) 51. Kh4 Nxg4 52. Kxg4 Qxf2 (52... Rxf2 53. Ng6+ Kf6 54. Nf4 Qd1+ 55. Kh4 Rh2+ 56. Nh3 h5 57. Rf8+ Ke7 58. Re8+ Kxe8 59. Kg5 Rxh3 60. Kf4 Qd2+ 61. Ke5 Rxg3 62. Kf5 Rg5+ 63. Ke6 Qd7+ 64. Kf6 Qe7#) 53. Ra3 Qe2+ 54. Kh3 Rf1 (54... Qxe4 55. Ra7+ Ke6 56. Ra8 Kxe5 57. Re8+ Re6 58. Rxe6+ Kxe6 59. g4 Qf3+ 60. Kh2 Qxg4 61. Kh1 Kd5 62. Kh2 Ke4 63. Kh1 Kf3 64. Kh2 Qg2#) (54... Qh5+ 55. Kg2 Qxe5 56. Ra7+ Ke6 57. Ra8 Qxe4+ 58. Kh3 Qh1+ 59. Kg4 h5+ 60. Kg5 Qd5+ 61. Kh4 Qe4+ 62. Kxh5 Qf5+ 63. Kh4 Rh6#) (54... Qxe4 55. Ra7+ Ke6 56. Ra8 Kxe5 57. Re8+ Re6 58. Rxe6+ Kxe6 59. g4 Ke5 60. Kg3 Qe2 61. g5 hxg5 62. Kh3 Kf5 63. Kg3 g4 64. Kh4 Qh2#) (54... Qh5+ 55. Kg2 Qxe5 56. Ra7+ Ke6 57. Ra8 Qxe4+ 58. Kh3 Qh1+ 59. Kg4 h5+ 60. Kg5 Qd5+ 61. Kh4 Qe4+ 62. Kxh5 Qf5+ 63. Kh4 Rh6#)) 49... Kd6 {[%emt 0:00:30]} 50. Rd7+ {[%emt 0:00:30]} Kc5 51. Nd2 {[%emt 0:00:30]} (51. Nxe5 {is a self mate.} Ne3+ 52. Kh3 Qf1+ (52... Nxg4 $2 53. Nxc4 Nxf2+ 54. Kh4 $19) 53. Kh4 Ng2+ (53... Nxg4 $2 54. Kxg4 Qe2+ 55. f3 $19) 54. Kh5 Qh1+ (54... Qxf2 $2 {perishes.} 55. Nd3+ Kb6 56. Nxf2 $18) (54... Qxf2 $2 {is the wrong capture.} 55. Nd3+ Kb6 56. Nxf2 $18)) 51... Qb4 52. Qh5 {[%emt 0:00:30]} Rd6 {[%emt 0:01:30]} 53. Qxf5 {[%emt 0:00:30]} 1-0